bitfinex/quotes_SOLUSD_20251226
["timestamp","ask_amount","ask_price","bid_price","bid_amount"]
[1766708697394,0.2,119.87,119.84,3.62068919]
[1766708697593,0.85,119.87,119.83,4.33068919]
[1766708697994,0.85,119.87,119.83,9.65569274]
[1766708698189,9.14569274,119.87,119.82,8.34585211]
[1766708698391,0.65,119.85,119.81,32.53197454]
[1766708698897,0.65,119.85,119.81,17.29197454]
[1766708699206,0.65,119.83,119.79,17.29321196]
[1766708699603,0.65,119.83,119.8,8.94569274]
[1766708699802,0.65,119.83,119.79,17.29321196]
[1766708699992,0.65,119.83,119.79,13.85636358]
[1766708700397,6.15884436,119.83,119.79,13.85636358]
[1766708701008,0.65,119.83,119.79,13.85636358]
[1766708703189,0.65,119.82,119.79,8.34780442]
[1766708704011,6.15884436,119.82,119.78,8.34817048]
[1766708704197,0.65,119.81,119.77,29.09810118]
[1766708704512,0.65,119.81,119.77,29.80810118]
[1766708704707,0.65,119.81,119.77,14.56810118]
[1766708707414,0.65,119.81,119.78,13.85724772]
[1766708708595,10.43767296,119.83,119.8,6.21884436]
[1766708708908,10.43767296,119.83,119.81,6.21884436]
[1766708709622,10.43767296,119.83,119.81,5.50884436]
[1766708709924,0.65,119.86,119.82,5.50884436]
[1766708710110,0.2,119.87,119.85,5.50884436]
[1766708710413,0.2,119.87,119.84,0.71]
[1766708710414,0.2,119.87,119.86,5.50884436]
[1766708710597,0.85,119.88,119.86,5.50884436]
[1766708710802,0.85,119.88,119.87,5.50884436]
[1766708711003,11.28767296,119.88,119.87,5.50884436]
[1766708711219,0.2,119.88,119.87,5.50884436]
[1766708712121,1e-08,119.88,119.87,13.85121526]
[1766708713019,0.65000001,119.88,119.86,5.50884436]
[1766708715432,1e-08,119.9,119.87,5.50884436]
[1766708715612,0.2,119.92,119.89,6.20884436]
[1766708715814,0.2,119.92,119.91,5.50884436]
[1766708716636,0.66,119.95,119.91,14.54843238]
[1766708716823,11.09767296,119.95,119.93,5.50884436]
[1766708717713,0.56,119.94,119.89,0.7]
[1766708717908,0.56,119.91,119.86,21.55722882]
[1766708718123,0.56,119.94,119.89,0.7]
[1766708718320,0.56,119.94,119.9,5.50884436]
[1766708718321,0.56,119.93,119.9,5.50884436]
[1766708720227,0.46,119.92,119.89,5.50884436]
[1766708721239,0.46,119.92,119.9,5.50884436]
[1766708721439,25.67767296,119.95,119.91,0.7]
[1766708721736,0.46,119.95,119.93,5.50884436]
[1766708721934,0.46,119.95,119.94,2.30869403]
[1766708722130,0.1,119.96,119.94,2.30869403]
[1766708722333,15.24,119.98,119.95,2.30869403]
[1766708722514,0.1,119.99,119.97,2.30869403]
[1766708722714,4.35513472,120.01,119.98,2.30869403]
[1766708722923,0.1,120.07,120.0,4.61738806]
[1766708722924,2.40869403,120.07,120.0,4.61738806]
[1766708723244,2.40869403,120.07,120.02,2.30869403]
[1766708723415,2.30869403,120.06,120.01,0.7]
[1766708723616,2.30869403,120.06,120.02,2.30869403]
[1766708723912,8.42866834,120.07,119.98,0.7]
[1766708724112,5.49110527,120.04,120.0,5.49110527]
[1766708724337,8.42866834,120.07,119.98,0.7]
[1766708724338,5.49110527,120.05,119.98,0.7]
[1766708724513,15.92877823,120.04,120.0,5.49110527]
[1766708724713,10.43767296,120.04,120.0,5.49110527]
[1766708724921,10.43767296,120.04,120.01,5.49110527]
[1766708725125,10.43767296,120.04,120.02,5.49110527]
[1766708727243,10.43767296,120.04,119.86,15.0]
[1766708727416,10.43767296,120.01,120.0,5.49110527]
[1766708727740,10.43767296,120.0,119.95,5.49110527]
[1766708727923,20.71110527,120.03,119.99,5.49110527]
[1766708728236,10.43767296,120.0,119.99,5.49110527]
[1766708728550,23.55147018,120.03,119.99,5.49110527]
[1766708728751,10.43767296,120.01,120.0,5.49110527]
[1766708728932,10.43767296,120.02,119.98,14.5257833]
[1766708730157,10.43767296,120.02,120.0,5.49110527]
[1766708730333,8.32987273,120.05,120.01,5.49110527]
[1766708730536,10.43767296,120.04,120.01,5.49110527]
[1766708731662,10.43767296,120.04,120.0,6.19110527]
[1766708731956,15.92877823,120.04,120.0,6.19110527]
[1766708732360,10.43767296,120.04,120.01,5.49110527]
[1766708732566,20.92201767,120.07,120.04,0.7]
[1766708732567,0.1,120.07,120.04,0.7]
[1766708732731,0.1,120.07,120.05,5.49110527]
[1766708732932,0.1,120.07,120.05,6.19110527]
[1766708733160,0.1,120.07,120.05,0.7]
[1766708733450,0.1,120.08,120.01,25.65767296]
[1766708733451,0.1,120.08,120.06,6.19110527]
[1766708733656,5.49110527,120.11,120.07,6.19110527]
[1766708733835,8.32456792,120.13,120.07,0.7]
[1766708734037,5.49110527,120.12,120.07,6.19110527]
[1766708734277,5.49110527,120.11,120.07,6.19110527]
[1766708734436,5.49110527,120.12,120.07,6.19110527]
[1766708734636,15.92877823,120.12,120.07,6.19110527]
[1766708734938,5.49110527,120.11,120.07,6.19110527]
[1766708735148,10.43767296,120.12,120.07,6.19110527]
[1766708735353,15.92877823,120.11,120.07,6.19110527]
[1766708736264,10.43767296,120.11,120.07,6.19110527]
[1766708736439,15.92877823,120.11,120.07,14.51958014]
[1766708736639,10.43767296,120.11,120.07,14.51958014]
[1766708737157,10.43767296,120.11,120.08,5.49110527]
[1766708738152,15.22,120.15,120.1,5.49110527]
[1766708738347,23.54315436,120.15,120.09,6.19110527]
[1766708738550,5.49110527,120.14,120.09,6.19110527]
[1766708738759,5.49110527,120.14,120.09,0.7]
[1766708738964,10.43767296,120.12,120.06,5.49110527]
[1766708739238,5.49110527,120.11,120.07,6.19110527]
[1766708739641,10.43767296,120.12,120.04,36.04587693]
[1766708739642,10.43767296,120.12,120.09,5.49110527]
[1766708740263,10.43767296,120.12,120.08,6.19110527]
[1766708740562,10.43767296,120.12,120.09,6.19110527]
[1766708740767,15.92877823,120.12,120.08,5.49110527]
[1766708740944,24.25380148,120.12,120.07,0.7]
[1766708741143,5.49110527,120.11,120.07,0.7]
[1766708741454,5.49110527,120.11,120.07,5.49110527]
[1766708742241,33.98269621,120.12,120.06,0.7]
[1766708742444,5.49110527,120.1,120.06,5.49110527]
[1766708742850,31.14877823,120.12,120.07,6.19110527]
[1766708743253,31.14877823,120.12,120.07,0.7]
[1766708743451,31.14877823,120.12,120.07,6.19110527]
[1766708744068,39.47383783,120.12,120.07,6.19110527]
[1766708744845,5.49110527,120.11,120.07,5.49110527]
[1766708745246,13.81695304,120.11,120.06,0.67]
[1766708745455,13.81695304,120.11,120.06,6.16110527]
[1766708745973,13.81695304,120.11,120.07,5.49110527]
[1766708747084,13.81695304,120.11,120.06,6.16110527]
[1766708747365,5.49110527,120.09,120.04,8.33036396]
[1766708747566,5.49110527,120.08,120.04,5.49110527]
[1766708747761,5.49110527,120.08,120.03,19.43874867]
[1766708747970,5.49110527,120.08,120.03,24.92985394]
[1766708748279,5.49110527,120.08,120.04,6.16110527]
[1766708748856,5.49110527,120.08,120.04,14.49155804]
[1766708749068,5.49110527,120.09,120.04,14.49155804]
[1766708749770,13.81826286,120.09,120.04,14.49155804]
[1766708749948,8.32715759,120.09,120.04,6.16110527]
[1766708750273,5.49110527,120.08,120.04,6.16110527]
[1766708750577,5.49110527,120.06,120.0,0.67]
[1766708750788,5.49110527,120.06,120.01,5.49110527]
[1766708750948,10.43767296,120.05,120.0,0.67]
[1766708751174,5.49110527,120.04,120.0,0.67]
[1766708752170,5.49110527,120.04,120.0,6.16110527]
[1766708752370,18.76772919,120.05,120.0,6.16110527]
[1766708752575,5.49110527,120.04,120.0,6.16110527]
[1766708753201,18.76772919,120.05,120.0,6.16110527]
[1766708753495,5.49110527,120.04,120.0,6.16110527]
[1766708753699,5.49110527,120.04,120.0,0.67]
[1766708753898,5.49110527,120.01,119.97,6.16110527]
[1766708754193,5.49110527,120.02,119.98,0.67]
[1766708754397,5.49110527,120.02,119.98,6.16110527]
[1766708754594,5.49110527,120.02,119.98,14.4957857]
[1766708755372,5.49110527,120.03,119.99,0.67]
[1766708756380,5.49110527,120.03,119.98,14.49569172]
[1766708757081,13.82237557,120.03,119.98,14.49569172]
[1766708758195,13.82237557,120.03,119.98,9.00458645]
[1766708758504,5.49110527,120.02,119.98,0.67]
[1766708758689,5.49110527,120.02,119.98,6.16110527]
[1766708761302,8.33055648,120.04,120.0,5.49110527]
[1766708761303,5.49110527,120.04,120.0,5.49110527]
[1766708761483,5.49823322,120.03,119.99,6.16110527]
[1766708761682,5.49110527,120.04,119.99,6.16110527]
[1766708761897,33.96759807,120.05,119.99,9.5923986]
[1766708762100,14.42297341,120.04,119.99,9.5923986]
[1766708762311,8.9223986,120.04,119.99,9.5923986]
[1766708762711,14.42213681,120.03,119.99,9.5923986]
[1766708762904,8.9223986,120.03,119.99,9.5923986]
[1766708763592,8.9223986,120.03,119.99,0.67]
[1766708764510,8.9223986,120.02,119.98,0.67]
[1766708764706,8.9223986,120.02,119.98,9.5923986]
[1766708764913,8.9223986,120.02,119.98,17.92711809]
[1766708765283,8.9223986,120.03,119.99,8.9223986]
[1766708765488,5.51213674,120.02,120.0,0.67]
[1766708765709,8.9223986,120.03,120.0,0.67]
[1766708766512,8.9223986,120.04,120.01,0.67]
[1766708766807,5.51602224,120.03,120.01,0.67]
[1766708767012,8.9223986,120.03,119.99,0.67]
[1766708767213,8.9223986,120.01,119.98,0.67]
[1766708767417,15.21465219,120.04,119.98,0.67]
[1766708767617,8.9223986,120.02,119.98,0.67]
[1766708767811,5.51950565,120.01,119.98,0.67]
[1766708768305,8.9223986,120.01,119.96,8.33590887]
[1766708768509,8.9223986,120.0,119.96,17.25830747]
[1766708768704,8.9223986,120.0,119.97,0.67]
[1766708769111,5.51751394,119.99,119.95,0.67]
[1766708769296,8.9223986,120.0,119.95,17.92914223]
[1766708769492,8.9223986,119.99,119.95,9.00674363]
[1766708769694,8.9223986,119.99,119.95,0.67]
[1766708770016,8.9223986,119.99,119.96,0.67]
[1766708770816,17.25503754,120.01,119.97,0.67]
[1766708771707,25.65767296,120.02,119.96,17.25828491]
[1766708771708,34.58007156,120.02,119.98,9.5923986]
[1766708771917,10.43767296,120.02,119.99,9.5923986]
[1766708772497,10.43767296,120.02,119.99,0.67]
[1766708772705,10.43767296,120.02,119.99,9.5923986]
[1766708774117,10.43767296,120.02,119.99,0.67]
[1766708774318,10.43767296,120.02,119.99,9.5923986]
[1766708776623,10.43767296,120.02,119.99,0.67]
[1766708776927,19.36007156,120.02,119.99,0.67]
[1766708777400,10.43767296,120.02,119.99,0.67]
[1766708777824,10.43767296,120.04,120.0,9.5823986]
[1766708778115,104.7,120.05,120.01,9.5823986]
[1766708778323,113.6223986,120.05,120.01,9.5823986]
[1766708778523,121.95230594,120.05,120.01,9.5823986]
[1766708779406,8.9223986,120.04,120.01,0.66]
[1766708780121,8.9223986,120.02,119.97,9.5823986]
[1766708780319,8.9223986,120.01,119.97,0.66]
[1766708780493,8.9223986,119.98,119.93,0.66]
[1766708780694,8.9223986,119.96,119.93,0.66]
[1766708781131,15.22,119.98,119.91,0.66]
[1766708781132,8.9223986,119.94,119.91,0.66]
[1766708781526,8.9223986,119.95,119.91,0.66]
[1766708781722,8.9223986,119.95,119.91,9.5823986]
[1766708781940,8.9223986,119.95,119.92,0.66]
[1766708782642,8.9223986,119.96,119.92,0.66]
[1766708783238,8.9223986,119.95,119.92,0.66]
[1766708788948,23.55683084,119.95,119.9,9.5823986]
[1766708789141,8.9223986,119.94,119.9,9.5823986]
[1766708789847,8.9223986,119.94,119.9,0.66]
[1766708790042,17.26021162,119.94,119.9,0.66]
[1766708790255,8.9223986,119.93,119.9,0.66]
[1766708790618,10.43767296,119.91,119.88,0.66]
[1766708790825,10.43767296,119.91,119.89,0.66]
[1766708791027,17.26021162,119.94,119.9,0.66]
[1766708791322,8.9223986,119.93,119.9,0.66]
[1766708791751,17.26021162,119.94,119.9,0.66]
[1766708791947,42.91711451,119.95,119.91,0.66]
[1766708792151,42.91711451,119.95,119.91,9.5823986]
[1766708792549,42.91711451,119.95,119.91,0.66]
[1766708793038,8.9223986,119.94,119.91,0.66]
[1766708793232,8.9223986,119.93,119.89,8.9223986]
[1766708793443,8.9223986,119.93,119.9,0.66]
[1766708797667,17.26024005,119.94,119.9,0.66]
[1766708800861,25.65767296,119.95,119.92,0.66]
[1766708801068,34.58007156,119.95,119.92,0.66]
[1766708801570,33.9945754,119.95,119.92,0.66]
[1766708801866,42.916974,119.95,119.92,0.66]
[1766708803153,8.9223986,119.93,119.89,0.66]
[1766708803348,8.9223986,119.93,119.9,0.66]
[1766708804273,8.9223986,119.94,119.9,0.66]
[1766708804869,54.8365929,119.95,119.9,0.66]
[1766708805048,17.25997818,119.94,119.9,0.66]
[1766708805976,11.94700818,119.94,119.9,0.66]
[1766708806173,11.94700818,119.94,119.9,4.2694286]
[1766708806869,11.94700818,119.94,119.9,0.66]
[1766708807975,14.04710156,119.91,119.87,0.86]
[1766708808171,3.6094286,119.9,119.87,0.86]
[1766708808482,14.04710156,119.91,119.88,0.66]
[1766708809667,3.6094286,119.9,119.88,0.66]
[1766708809979,10.43767296,119.86,119.81,3.6094286]
[1766708810178,14.04710156,119.86,119.82,0.69]
[1766708812089,22.39026067,119.86,119.82,0.69]
[1766708812581,14.04710156,119.86,119.82,0.69]
[1766708812987,22.3903847,119.86,119.82,0.69]
[1766708813174,18.7809561,119.86,119.82,4.2994286]
[1766708813790,10.43767296,119.86,119.82,4.2994286]
[1766708814087,10.43767296,119.86,119.82,0.69]
[1766708814279,10.43767296,119.86,119.82,9.6386508]
[1766708815680,10.43767296,119.86,119.85,0.69]
[1766708817587,10.43767296,119.86,119.84,0.69]
[1766708821000,10.43767296,119.85,119.78,21.07128215]
[1766708821197,8.9486508,119.85,119.8,9.6386508]
[1766708821393,8.9486508,119.85,119.8,8.9486508]
[1766708821591,8.9486508,119.85,119.81,0.69]
[1766708821802,15.24,119.86,119.81,9.6386508]
[1766708822095,15.24,119.86,119.78,5.70787066]
[1766708822096,10.43767296,119.82,119.78,5.70787066]
[1766708822409,10.43767296,119.82,119.79,0.69]
[1766708822688,10.43767296,119.82,119.79,5.50787066]
[1766708822889,10.43767296,119.82,119.8,0.69]
[1766708826232,8.34398683,119.85,119.8,5.50787066]
[1766708826431,5.50787066,119.86,119.83,0.69]
[1766708826729,5.50787066,119.86,119.8,8.34701175]
[1766708826730,118.54977344,119.88,119.85,0.69]
[1766708827036,10.43767296,119.86,119.83,0.69]
[1766708827334,5.50787066,119.87,119.83,0.69]
[1766708827835,15.94554362,119.87,119.83,0.69]
[1766708828034,15.94554362,119.84,119.79,0.69]
[1766708828235,15.94554362,119.84,119.8,0.69]
[1766708828432,15.94554362,119.84,119.8,6.19787066]
[1766708829317,24.29013679,119.84,119.8,6.19787066]
[1766708829724,24.29013679,119.84,119.8,0.69]
[1766708830344,5.50787066,119.83,119.8,0.69]
[1766708830635,18.78226613,119.84,119.78,0.89]
[1766708830636,5.50787066,119.81,119.78,0.89]
[1766708830832,5.50787066,119.82,119.79,0.69]
[1766708831032,5.50787066,119.83,119.79,0.69]
[1766708831425,5.50787066,119.83,119.8,0.69]
[1766708832345,5.50787066,119.8,119.78,0.69]
[1766708833336,5.50787066,119.79,119.77,0.2]
[1766708833543,5.50787066,119.78,119.77,1e-08]
[1766708833837,5.50787066,119.78,119.76,5.14588116]
[1766708834039,5.50787066,119.77,119.76,5.14588116]
[1766708834217,8.34794223,119.79,119.76,5.14588116]
[1766708834417,5.50787066,119.78,119.76,5.14588116]
[1766708835521,5.50787066,119.77,119.73,0.66]
[1766708835724,5.50787066,119.76,119.73,0.66]
[1766708835947,5.50787066,119.77,119.73,0.66]
[1766708836340,20.74787066,119.78,119.74,0.66]
[1766708837528,20.74787066,119.78,119.74,5.50787066]
[1766708837846,20.74787066,119.78,119.75,0.66]
[1766708838748,15.24,119.78,119.75,0.66]
[1766708839545,34.02514036,119.8,119.76,6.16787066]
[1766708839849,39.53301102,119.8,119.77,0.66]
[1766708840044,36.3402939,119.8,119.77,0.66]
[1766708841043,104.7,119.86,119.78,2.31515354]
[1766708841345,220.4005708,119.91,119.83,0.66]
[1766708841346,2.31515354,119.87,119.83,0.66]
[1766708841746,12.7528265,119.87,119.83,0.66]
[1766708842452,10.65822045,119.86,119.83,0.66]
[1766708844025,13.84959494,119.86,119.83,0.66]
[1766708844353,24.28678559,119.87,119.83,0.66]
[1766708844547,15.94420099,119.87,119.84,0.66]
[1766708844741,10.43767296,119.87,119.84,0.66]
[1766708845141,15.94420099,119.87,119.84,0.66]
[1766708845347,24.2865853,119.87,119.82,6.16652803]
[1766708845548,24.2865853,119.87,119.83,0.66]
[1766708846255,5.50652803,119.86,119.83,0.66]
[1766708846643,24.2865853,119.87,119.83,0.66]
[1766708847650,10.43767296,119.87,119.84,0.66]
[1766708848234,5.50652803,119.86,119.81,5.50652803]
[1766708848442,5.50652803,119.86,119.82,0.66]
[1766708850060,5.50652803,119.86,119.82,5.50652803]
[1766708850261,5.50652803,119.86,119.83,0.66]
[1766708850654,13.84973774,119.86,119.83,0.66]
[1766708850857,5.50652803,119.85,119.83,0.66]
[1766708851037,24.28685179,119.87,119.83,0.66]
[1766708851960,5.50652803,119.86,119.83,0.66]
[1766708853254,13.84968705,119.86,119.83,0.66]
[1766708854755,13.84968705,119.86,119.81,13.85298645]
[1766708854963,13.84968705,119.86,119.82,0.66]
[1766708855546,5.50652803,119.86,119.82,0.66]
[1766708855860,18.78027767,119.87,119.83,0.66]
[1766708856049,18.78027767,119.87,119.84,0.66]
[1766708856050,10.43767296,119.87,119.84,0.66]
[1766708856657,15.94420099,119.87,119.84,0.66]
[1766708856847,15.94420099,119.87,119.83,5.50652803]
[1766708857047,24.28657334,119.87,119.82,13.85210576]
[1766708857247,24.28657334,119.87,119.83,0.66]
[1766708857663,5.50652803,119.86,119.83,0.66]
[1766708859768,24.28657334,119.87,119.83,0.66]
[1766708859971,15.94420099,119.87,119.83,0.66]
[1766708861062,10.43767296,119.87,119.84,0.66]
[1766708864974,21.09237155,119.87,119.82,2.31228769]
[1766708865170,21.09237155,119.87,119.83,0.71]
[1766708868054,18.78008386,119.87,119.83,0.71]
[1766708868253,12.74996065,119.87,119.83,0.71]
[1766708868457,21.09234401,119.87,119.83,0.71]
[1766708870178,18.78005632,119.87,119.83,2.31228769]
[1766708870362,18.78005632,119.87,119.84,0.71]
[1766708872484,21.09234401,119.87,119.84,0.71]
[1766708874183,18.78005632,119.87,119.84,0.71]
[1766708874386,21.09234401,119.87,119.84,0.71]
[1766708875481,18.78005632,119.87,119.84,0.71]
[1766708875786,21.09234401,119.87,119.84,0.71]
[1766708877185,12.74996065,119.87,119.84,0.71]
[1766708880392,10.43767296,119.87,119.84,0.71]
[1766708880581,21.09239412,119.87,119.84,0.71]
[1766708880772,21.09239412,119.87,119.82,8.34562928]
[1766708880773,2.31228769,119.86,119.82,0.71]
[1766708881985,3.61408159,119.86,119.82,0.71]
[1766708882182,3.61408159,119.85,119.82,0.71]
[1766708882571,3.61408159,119.86,119.82,0.71]
[1766708882987,39.63603368,119.87,119.82,0.71]
[1766708882988,18.78010643,119.87,119.82,0.71]
[1766708883188,9.14833681,119.86,119.82,0.71]
[1766708883492,3.61408159,119.86,119.82,0.71]
[1766708884186,5.54516879,119.85,119.82,0.71]
[1766708885199,11.95764944,119.86,119.82,0.71]
[1766708885367,5.55220839,119.85,119.82,0.71]
[1766708885571,11.95764944,119.86,119.82,0.71]
[1766708885798,5.55220228,119.85,119.82,0.71]
[1766708885985,11.95764944,119.86,119.82,0.71]
[1766708886210,5.55220839,119.85,119.82,0.71]
[1766708886384,5.55220839,119.84,119.82,0.71]
[1766708886589,8.34356785,119.86,119.82,0.71]
[1766708886889,5.55942638,119.85,119.82,0.71]
[1766708887076,5.55942638,119.84,119.82,0.71]
[1766708887272,8.34356785,119.86,119.81,0.71]
[1766708887574,5.55933032,119.85,119.81,0.71]
[1766708887779,5.55933032,119.84,119.81,3.61408159]
[1766708887979,5.55933032,119.83,119.82,0.71]
[1766708890200,8.34405404,119.85,119.82,0.71]
[1766708890403,5.55531668,119.84,119.82,0.71]
[1766708890589,8.34405404,119.85,119.82,0.71]
[1766708890785,5.55524711,119.84,119.8,3.61408159]
[1766708890992,19.60700166,119.83,119.79,0.71]
[1766708891186,5.55524711,119.82,119.79,0.71]
[1766708891388,22.39694712,119.83,119.79,0.71]
[1766708891588,5.55248423,119.82,119.79,0.71]
[1766708891786,22.39694712,119.83,119.79,0.71]
[1766708892010,5.55248423,119.82,119.79,0.71]
[1766708892306,22.39694712,119.83,119.79,0.71]
[1766708892606,5.55097384,119.82,119.79,0.71]
[1766708892806,3.61408159,119.8,119.74,25.67767296]
[1766708893007,32.82474836,119.82,119.71,0.71]
[1766708893008,3.61408159,119.75,119.71,0.71]
[1766708893213,3.61408159,119.73,119.71,0.71]
[1766708893387,3.61408159,119.72,119.69,0.71]
[1766708893585,15.24,119.75,119.69,0.71]
[1766708893784,3.61408159,119.72,119.69,0.71]
[1766708894092,3.61408159,119.71,119.69,0.71]
[1766708894485,14.05175455,119.7,119.67,0.91]
[1766708894686,15.24,119.69,119.67,0.2]
[1766708894997,0.72,119.75,119.68,3.61408159]
[1766708895298,15.24,119.74,119.7,3.61408159]
[1766708895601,3.61408159,119.73,119.69,3.61408159]
[1766708895809,4.33408159,119.73,119.69,3.61408159]
[1766708896584,4.33408159,119.73,119.68,3.61408159]
[1766708896785,12.68640731,119.73,119.68,3.61408159]
[1766708896984,0.72,119.72,119.68,3.61408159]
[1766708897180,15.24,119.71,119.68,3.61408159]
[1766708897388,15.24,119.71,119.67,0.2]
[1766708897589,15.24,119.71,119.68,3.61408159]
[1766708898306,15.24,119.71,119.69,3.61408159]
[1766708898507,15.24,119.71,119.67,0.2]
[1766708898693,15.24,119.71,119.69,3.61408159]
[1766708898892,15.24,119.71,119.7,3.61408159]
[1766708899103,15.24,119.71,119.69,11.96893611]
[1766708900203,15.24,119.71,119.69,3.61408159]
[1766708900583,15.24,119.71,119.7,3.61408159]
[1766708901401,15.24,119.71,119.69,3.61408159]
[1766708901783,15.24,119.71,119.68,8.35541179]
[1766708902006,15.24,119.71,119.69,3.61408159]
[1766708902717,15.24,119.71,119.69,11.96890969]
[1766708902896,15.24,119.71,119.7,3.61408159]
[1766708903098,0.72,119.73,119.7,11.96826085]
[1766708903415,10.43767296,119.72,119.71,3.61408159]
[1766708903585,0.72,119.73,119.71,3.61408159]
[1766708904288,0.72,119.73,119.7,3.61408159]
[1766708905087,0.72,119.73,119.69,3.61408159]
[1766708905713,0.72,119.73,119.69,11.96898683]
[1766708906209,0.72,119.73,119.7,3.61408159]
[1766708907814,0.72,119.73,119.68,8.35534805]
[1766708908112,0.72,119.73,119.7,3.61408159]
[1766708909117,0.72,119.73,119.69,3.61408159]
[1766708910215,0.72,119.73,119.68,8.35534805]
[1766708910518,0.72,119.73,119.7,3.61408159]
[1766708911510,22.40366557,119.74,119.58,4.55365263]
[1766708911511,7.22816318,119.71,119.58,4.55365263]
[1766708911716,3.61408159,119.63,119.58,4.55365263]
[1766708911890,10.43767296,119.6,119.58,0.2]
[1766708912088,4.35293202,119.58,119.56,5.30556563]
[1766708912307,4.35293202,119.58,119.51,8.46740368]
[1766708912308,0.42,119.56,119.51,8.46740368]
[1766708912496,0.42,119.56,119.51,0.1]
[1766708912692,0.42,119.56,119.52,3.61408159]
[1766708912894,0.42,119.56,119.51,0.1]
[1766708912895,3.61408159,119.55,119.51,0.1]
[1766708913218,29.29175455,119.54,119.51,0.1]
[1766708913418,10.43767296,119.51,119.49,43.1088645]
[1766708913594,15.98,119.5,119.49,19.3388645]
[1766708913789,19.59408159,119.5,119.49,19.3388645]
[1766708913991,30.42254939,119.5,119.46,0.71]
[1766708914218,9.00420894,119.49,119.46,0.71]
[1766708914393,8.36400133,119.56,119.48,9.00420894]
[1766708914593,9.72420894,119.53,119.49,0.71]
[1766708914805,0.72,119.49,119.45,9.00420894]
[1766708915000,5.42194242,119.48,119.46,9.00420894]
[1766708915314,5.42194242,119.48,119.4,111.88074031]
[1766708915315,15.84615321,119.47,119.43,0.71]
[1766708915611,9.00420894,119.45,119.4,110.89574031]
[1766708915816,21.38777702,119.44,119.4,119.89994925]
[1766708916112,0.72,119.42,119.4,110.89574031]
[1766708916312,29.67198596,119.41,119.4,59.46753656]
[1766708916521,29.67198596,119.41,119.35,9.08862902]
[1766708916522,29.67198596,119.41,119.35,9.00420894]
[1766708916703,9.00420894,119.39,119.35,0.71]
[1766708916904,9.00420894,119.37,119.33,9.00420894]
[1766708917222,9.18565924,119.35,119.26,5.5436084]
[1766708917392,8.94115797,119.32,119.3,204.92685699]
[1766708917592,8.37597261,119.39,119.32,0.71]
[1766708917796,8.37597261,119.39,119.3,205.63685699]
[1766708917797,10.43767296,119.35,119.3,205.63685699]
[1766708918019,5.36566356,119.34,119.3,205.63685699]
[1766708918217,10.43767296,119.31,119.3,203.47685699]
[1766708918536,13.41474242,119.37,119.3,220.8632676]
[1766708918709,10.43767296,119.39,119.3,222.29673162]
[1766708919018,9.00420894,119.4,119.3,232.81463284]
[1766708919207,24.26420894,119.4,119.3,232.81463284]
[1766708919407,10.43767296,119.37,119.36,9.00420894]
[1766708919806,15.26,119.44,119.36,17.38213861]
[1766708919994,15.26,119.44,119.4,9.00420894]
[1766708920196,15.26,119.44,119.35,15.99]
[1766708920393,9.00420894,119.43,119.35,0.71]
[1766708920819,9.00420894,119.41,119.36,0.71]
[1766708921027,9.00420894,119.38,119.33,9.00420894]
[1766708921232,15.28,119.44,119.36,9.00420894]
[1766708921396,24.28420894,119.44,119.39,9.00420894]
[1766708921797,20.92199238,119.5,119.42,9.00420894]
[1766708922019,15.28,119.5,119.44,9.70420894]
[1766708922322,9.00420894,119.49,119.44,9.00420894]
[1766708922518,10.43767296,119.46,119.45,9.00420894]
[1766708922820,9.00420894,119.49,119.43,0.7]
[1766708923009,10.43767296,119.45,119.43,9.00420894]
[1766708923202,10.43767296,119.45,119.41,0.7]
[1766708923403,10.43767296,119.45,119.42,9.00420894]
[1766708923630,9.00420894,119.49,119.44,9.00420894]
[1766708923809,23.64850255,119.5,119.44,9.00420894]
[1766708923810,15.28,119.5,119.46,9.00420894]
[1766708924002,32.65138892,119.52,119.47,9.00420894]
[1766708924197,15.28,119.52,119.48,9.00420894]
[1766708924505,15.28,119.52,119.5,9.00420894]
[1766708925107,23.64471075,119.55,119.51,9.00420894]
[1766708925317,23.64471075,119.55,119.44,38.30715551]
[1766708925318,15.28,119.55,119.52,9.00420894]